bitfinex/quotes_ETHUSD_20240731
["timestamp","ask_amount","ask_price","bid_price","bid_amount"]
[1722452848116,2.4738,3319.1,3318.5,3.0134]
[1722452848452,2.4738,3319.1,3318.5,3.616088]
[1722452848650,2.3197,3319.2,3318.1,3.01372]
[1722452848842,3.89235151,3319.2,3318.1,3.01372]
[1722452849016,3.01305,3318.9,3318.3,3.01353]
[1722452849437,3.01291,3319.1,3318.4,3.01348]
[1722452850042,2.3197,3319.2,3318.7,3.01322]
[1722452850766,4.47,3319.3,3319.0,3.01289]
[1722452851058,2.3709,3319.6,3318.8,2.73605854]
[1722452851059,2.3709,3319.6,3319.1,3.01284]
[1722452851268,2.3709,3319.6,3319.1,3.08173807]
[1722452851830,5.38331,3319.6,3319.1,0.06889807]
[1722452852372,5.38331,3319.6,3319.2,0.06884459]
[1722452852531,2.3709,3319.6,3319.1,3.0128]
[1722452852733,5.38331,3319.6,3319.3,0.06879111]
[1722452853037,5.38331,3319.6,3318.9,3.01296]
[1722452853244,3.01252,3319.5,3319.4,0.06873763]
[1722452853464,3.01252,3319.5,3318.8,5.68012]
[1722452853762,3.01252,3319.5,3318.9,3.08202505]
[1722452854166,3.0126,3319.4,3318.9,0.06900505]
[1722452854365,3.31394,3319.3,3318.9,0.06900505]
[1722452854669,3.01314,3318.8,3318.2,3.01362]
[1722452854881,2.3503,3319.2,3319.0,0.06897566]
[1722452854882,7.48286,3319.1,3319.0,0.06897566]
[1722452855068,5.36311,3319.2,3318.2,3.01362]
[1722452855069,3.01299,3319.0,3318.4,3.01348]
[1722452855573,3.01299,3319.0,3318.5,0.06924313]
[1722452858175,3.01305,3318.9,3318.5,0.06924313]
[1722452858482,3.01305,3318.9,3318.2,3.01362]
[1722452858650,3.01299,3319.0,3318.6,0.06916018]
[1722452858857,3.01305,3318.9,3318.3,3.01358]
[1722452859054,3.01305,3318.9,3318.7,0.06913346]
[1722452859255,4.297598,3319.0,3318.3,3.01358]
[1722452859576,9.83309,3319.2,3318.8,0.06907996]
[1722452859766,9.83309,3319.2,3318.5,3.01331]
[1722452859767,3.01286,3319.1,3318.5,3.01331]
[1722452860078,3.01286,3319.1,3318.9,0.06902915]
[1722452860242,3.01286,3319.1,3318.5,3.01331]
[1722452860441,3.01286,3319.1,3319.0,0.06897298]
[1722452860645,0.837584,3319.1,3318.6,3.01331]
[1722452860847,2.3503,3319.2,3318.7,3.01322]
[1722452861164,3.01252,3319.5,3318.8,3.08220996]
[1722452861351,2.3615,3319.6,3318.9,3.01298]
[1722452861556,2.3615,3319.6,3318.9,3.08199576]
[1722452861766,2.3615,3319.6,3319.1,3.01285]
[1722452862145,2.3615,3319.6,3319.2,0.06883388]
[1722452862767,3.01217,3319.9,3319.2,3.08159388]
[1722452863077,3.01214,3319.9,3319.3,3.0126]
[1722452863240,6.8166,3320.0,3319.3,3.01259]
[1722452863440,6.8166,3320.0,3319.4,0.06872692]
[1722452863651,4.47,3320.0,3319.4,0.06872692]
[1722452863857,4.47,3320.0,3319.5,3.01248]
[1722452864073,4.47,3320.0,3319.5,3.01249]
[1722452864287,4.47,3320.0,3319.6,0.06861998]
[1722452865286,6.02464,3319.7,3319.6,0.06861998]
[1722452865656,3.01282,3319.2,3318.5,3.01333]
[1722452865857,3.01295,3319.0,3318.3,3.01357]
[1722452866077,3.01295,3319.0,3318.6,0.06679471]
[1722452866280,3.01319,3318.8,3318.1,3.01376]
[1722452866595,3.01319,3318.8,3318.7,0.06674121]
[1722452866778,3.01304,3318.9,3318.3,3.01357]
[1722452866983,3.01304,3318.9,3318.7,0.06674121]
[1722452867295,3.01289,3319.1,3318.3,3.01357]
[1722452867469,3.01302,3319.0,3318.8,0.06668771]
[1722452867672,1.57366409,3319.0,3318.3,3.01357]
[1722452867875,7.03033409,3319.2,3318.5,3.0134]
[1722452868270,1.57366409,3319.0,3318.6,3.08009471]
[1722452868869,1.57366409,3319.0,3318.6,0.06679471]
[1722452869292,3.01286,3319.1,3318.5,3.0134]
[1722452869293,1.88839691,3318.9,3318.5,3.0134]
[1722452869456,1.88839691,3318.9,3318.4,3.314847]
[1722452869457,1.88839691,3318.9,3318.7,0.06674121]
[1722452869662,1.88839691,3318.9,3318.6,0.06679471]
[1722452869870,1.88839691,3318.9,3318.8,0.06668771]
[1722452870074,5.3915756,3318.9,3318.7,0.06674121]
[1722452870274,6.51621869,3318.9,3318.8,0.06668771]
[1722452870757,3.01324,3318.7,3318.1,3.01376]
[1722452870961,3.01324,3318.7,3317.8,8.17877]
[1722452870962,1.58076514,3318.4,3318.2,0.06700873]
[1722452871190,1.58076514,3318.4,3318.0,3.01383]
[1722452871585,1.58076514,3318.4,3317.8,5.68104]
[1722452871781,1.58076514,3318.2,3318.1,0.06706225]
[1722452871996,1.58091283,3318.2,3317.9,3.01394]
[1722452872197,1.58091283,3318.2,3318.1,0.06723358]
[1722452872413,1.58091283,3318.3,3317.8,5.68104]
[1722452872565,1.58091283,3318.2,3318.1,0.06723358]
[1722452872765,1.58091283,3318.2,3317.8,3.01404]
[1722452873087,1.58091283,3318.2,3318.1,0.06725767]
[1722452873286,3.01323,3318.7,3317.8,3.569825]
[1722452873505,1.58067009,3318.3,3318.1,0.06725767]
[1722452873713,1.58067009,3318.2,3317.9,3.01393]
[1722452873893,1.58067009,3318.3,3317.9,3.01393]
[1722452874099,1.58067009,3318.3,3318.2,3.01368]
[1722452875104,1.8968041,3318.6,3318.0,3.6722155]
[1722452875105,1.8968041,3318.5,3318.0,3.6722155]
[1722452875313,1.58054391,3318.3,3318.0,3.01384]
[1722452875518,1.58054391,3318.3,3318.1,3.01376]
[1722452875718,1.58054391,3318.2,3318.1,3.01376]
[1722452875996,1.58054391,3318.3,3318.1,3.01376]
[1722452876230,1.58054391,3318.2,3318.1,3.01376]
[1722452876402,1.8968041,3318.4,3318.1,3.01376]
[1722452876746,1.58049489,3318.3,3318.2,3.01368]
[1722452876892,1.89659386,3318.6,3318.5,3.0134]
[1722452877090,1.89659386,3318.6,3317.8,3.569825]
[1722452877091,1.89659386,3318.6,3318.3,3.01353]
[1722452877326,1.89659386,3318.6,3318.5,3.0134]
[1722452877487,1.89659386,3318.8,3318.4,3.01349]
[1722452877690,2.3314,3319.3,3318.8,3.01313]
[1722452877691,1.89659386,3318.9,3318.8,3.01313]
[1722452877924,1.89659386,3319.1,3318.8,3.01313]
[1722452878625,1.89659386,3319.1,3318.9,3.01304]
[1722452879329,1.89659386,3319.0,3318.9,3.01304]
[1722452879695,1.89659386,3319.0,3318.7,3.01322]
[1722452879893,1.89623821,3319.0,3318.7,0.869359]
[1722452880094,1.89623821,3318.9,3318.6,3.0133]
[1722452880295,1.89623821,3318.8,3318.6,3.0133]
[1722452880829,1.89623821,3318.8,3318.3,3.314913]
[1722452880830,1.89623821,3318.8,3318.7,0.06496083]
[1722452880999,2.21227792,3318.9,3318.4,3.01347]
[1722452881194,1.89655761,3318.7,3318.5,3.0134]
[1722452881402,1.89655761,3318.7,3318.4,3.01347]
[1722452881835,1.89655761,3318.6,3318.4,3.01347]
[1722452882006,2.2614,3318.9,3318.4,3.01342]
[1722452882208,1.89667792,3318.6,3318.5,3.0134]
[1722452882406,1.89667792,3318.6,3318.2,5.68065]
[1722452882620,1.58053375,3318.3,3318.2,7.277715]
[1722452883130,1.58053375,3318.3,3318.2,10.291395]
[1722452883500,1.58053375,3318.3,3318.2,7.277715]
[1722452883695,1.89667792,3318.6,3318.2,7.277715]
[1722452883924,1.58059248,3318.3,3318.2,7.277715]
[1722452885439,1.89668701,3318.6,3318.3,3.01355]
[1722452885626,1.89668701,3318.5,3318.3,3.01355]
[1722452886131,1.89668701,3318.5,3318.2,2.667]
[1722452886438,1.89668701,3318.4,3318.1,6.01376]
[1722452886601,1.89668701,3318.4,3318.1,41.01376]
[1722452886801,1.89668701,3318.4,3318.1,6.01376]
[1722452887036,1.89668701,3318.5,3318.3,3.01359]
[1722452887933,1.89668701,3318.5,3318.1,6.01376]
[1722452888139,1.89668701,3318.4,3318.1,6.01376]
[1722452888739,1.89713241,3318.4,3317.9,3.01392]
[1722452888936,3.01339,3318.6,3317.9,3.01392]
[1722452888937,1.58100579,3318.0,3317.9,3.01392]
[1722452889144,1.89713241,3318.3,3317.9,3.01392]
[1722452889470,1.89713241,3318.2,3317.8,3.01403]
[1722452889660,1.58101953,3317.9,3317.8,3.01403]
[1722452889954,1.89713241,3318.1,3317.6,7.29]
[1722452890113,1.89713241,3317.8,3317.6,7.29]
[1722452890310,1.89713241,3317.7,3317.6,7.29]
[1722452891626,1.89713241,3317.8,3317.6,7.29]
[1722452891822,1.89669171,3317.8,3317.6,7.29]
[1722452892135,1.89669171,3317.8,3317.6,10.30422]
[1722452892336,1.89669171,3317.8,3317.7,3.01413]
[1722452892547,1.89669171,3318.0,3317.8,3.01404]
[1722452892745,1.89669171,3317.9,3317.8,3.01404]
[1722452893047,1.89669171,3318.0,3317.8,3.01404]
[1722452893250,1.89669171,3317.9,3317.3,7.29]
[1722452893414,1.89669171,3318.0,3317.6,3.01422]
[1722452893618,1.89669171,3317.9,3317.6,3.01422]
[1722452893819,1.89669171,3317.9,3317.4,3.0144]
[1722452894054,1.58010949,3317.5,3317.4,3.0144]
[1722452894754,1.58010949,3317.6,3317.4,3.0144]
[1722452894972,3.01375,3318.2,3317.6,3.01418]
[1722452895183,1.89575783,3317.8,3317.6,3.01418]
[1722452895345,1.89575783,3317.9,3317.4,3.01433]
[1722452895674,1.5795321,3317.6,3317.5,3.07824974]
[1722452895824,5.22546747,3318.2,3317.5,0.06394974]
[1722452895825,1.89575783,3317.8,3317.5,0.06394974]
[1722452896433,4.90979783,3317.8,3317.5,0.06394974]
[1722452896633,2.409,3317.6,3317.1,3.01462]
[1722452896833,2.409,3317.6,3317.2,3.01459]
[1722452896834,1.5793718,3317.3,3317.2,3.01459]
[1722452897154,1.5793718,3317.3,3317.0,3.01473]
[1722452897330,1.57953732,3317.2,3316.7,3.01498]
[1722452897536,1.57953732,3316.9,3316.5,3.01516]
[1722452897737,1.57953732,3316.9,3316.6,3.01513]
[1722452897966,2.21171747,3317.5,3316.7,3.01503]
[1722452897967,1.57953732,3316.8,3316.7,3.01503]
[1722452898170,1.89575783,3317.1,3316.4,3.01528]
[1722452898171,2.3727,3317.1,3316.4,3.01528]
[1722452898371,2.3727,3317.1,3316.5,3.0152]
[1722452898372,1.57927479,3316.7,3316.5,3.0152]
[1722452898573,2.3727,3317.1,3316.4,3.01528]
[1722452898574,1.57938689,3316.8,3316.6,3.01506]
[1722452899069,1.57938689,3316.8,3316.5,3.01521]
[1722452899271,1.57938689,3316.9,3316.5,3.01521]
[1722452899455,1.57938689,3316.8,3316.3,0.0881431]
[1722452899647,1.57938689,3316.7,3316.3,3.1035431]
[1722452899989,1.57938689,3316.7,3316.3,0.0881431]
[1722452900171,1.57938689,3316.5,3316.3,0.0881431]
[1722452900337,3.0148,3317.0,3316.3,0.0881431]
[1722452900338,1.57938689,3316.6,3316.3,0.0881431]
[1722452900970,1.57938689,3316.4,3316.3,0.0881431]
[1722452901299,2.4477,3316.4,3316.3,0.0881431]
[1722452901901,0.15793869,3316.6,3316.3,0.0881431]
[1722452901902,1.57737314,3316.6,3316.3,0.0881431]
[1722452902205,1.57737314,3316.7,3316.3,0.0881431]
[1722452902385,2.3612,3316.8,3316.3,3.1035131]
[1722452902386,3.93857314,3316.8,3316.3,3.1035131]
[1722452902912,3.93857314,3316.8,3316.3,0.0881431]
[1722452903218,0.69534331,3316.7,3316.3,0.0881431]
[1722452903562,0.69534331,3316.7,3316.3,3.1034831]
[1722452903819,0.69534331,3316.7,3316.3,0.0881431]
[1722452904107,3.01518,3316.6,3316.3,0.0881431]
[1722452904327,3.01531,3316.4,3316.3,0.0881431]
[1722452904785,3.01523,3316.5,3316.3,0.0881431]
[1722452904993,3.01518,3316.6,3316.3,0.0881431]
[1722452905163,1.57444285,3316.6,3316.3,0.0881431]
[1722452905503,2.3612,3316.8,3316.3,0.0881431]
[1722452905504,6.95065285,3316.8,3316.3,0.0881431]
[1722452905998,3.01511,3316.7,3316.3,0.0881431]
[1722452906378,2.3612,3316.8,3316.4,0.06154115]
[1722452906567,5.37622,3316.8,3316.4,0.06154115]
[1722452906897,3.01518,3316.6,3316.4,0.06154115]
[1722452907097,5.37618,3316.8,3316.4,0.06154115]
[1722452907304,6.37272229,3316.8,3316.4,0.06154115]
[1722452907601,6.37272229,3316.8,3316.3,3.1035431]
[1722452907602,3.35774229,3316.8,3316.3,3.1035431]
[1722452907806,2.3612,3316.8,3316.3,3.1035431]
[1722452907967,2.3612,3316.8,3316.4,0.06152774]
[1722452908167,2.3612,3316.8,3316.3,0.0881431]
[1722452908531,2.3612,3316.8,3316.4,0.06152774]
[1722452908817,5.37617,3316.8,3316.4,0.06152774]
[1722452909023,0.839104,3316.7,3316.4,0.06152774]
[1722452909187,3.854174,3316.7,3316.4,0.06152774]
[1722452909838,3.01519,3316.6,3316.4,0.06152774]
[1722452910528,3.01522,3316.5,3316.4,0.06152774]
[1722452910830,3.01522,3316.5,3316.3,0.0881431]
[1722452911110,0.603041,3316.4,3316.3,0.0881431]
[1722452912082,3.854214,3316.7,3316.3,0.0881431]
[1722452912527,0.839104,3316.7,3316.3,0.0881431]
[1722452912810,2.3612,3316.8,3316.3,3.1035331]
[1722452913510,2.3612,3316.8,3316.3,0.0881431]
[1722452913511,6.03062,3316.4,3316.3,0.0881431]
[1722452913721,8.48862,3316.4,3316.3,0.0881431]
[1722452914207,2.458,3316.4,3316.3,0.0881431]
[1722452914781,3.01511,3316.7,3316.3,0.0881431]
[1722452914986,4.0211616,3316.7,3316.3,0.0881431]
[1722452915315,1.0060516,3316.7,3316.3,0.0881431]
[1722452915633,2.458,3316.8,3316.3,3.1035431]
[1722452915779,8.47295,3316.8,3316.3,0.0881431]
[1722452916338,5.458,3316.8,3316.3,0.0881431]
[1722452916507,2.458,3316.8,3316.3,0.0881431]
[1722452916825,2.458,3316.8,3316.4,0.05434845]
[1722452916975,3.0038,3316.8,3316.4,0.05434845]
[1722452917174,2.458,3316.8,3316.4,0.05434845]
[1722452917619,2.458,3316.8,3316.3,0.0881431]
[1722452918338,2.458,3316.8,3316.4,0.0542975]
[1722452919839,5.47298,3316.8,3316.3,0.0881431]
[1722452920043,0.2458,3316.7,3316.3,0.0881431]
[1722452920208,3.0152,3316.6,3316.3,0.0881431]
[1722452920418,3.0152,3316.6,3316.4,0.0542841]
[1722452920605,3.01522,3316.5,3316.3,0.0881431]
[1722452920805,0.603042,3316.4,3316.3,0.0881431]
[1722452921148,3.618352,3316.4,3316.3,0.0881431]
[1722452922051,9.119762,3316.4,3316.3,0.0881431]
[1722452922824,9.104452,3316.4,3316.3,0.0881431]
[1722452923031,12.119762,3316.4,3316.3,0.0881431]
[1722452925152,15.135072,3316.4,3316.3,0.0881431]
[1722452925935,12.119762,3316.4,3316.3,0.0881431]
[1722452926718,15.135072,3316.4,3316.3,0.0881431]
[1722452927407,15.685072,3316.4,3316.3,0.0881431]
[1722452927815,12.669762,3316.4,3316.3,0.0881431]
[1722452928018,13.69201025,3316.4,3316.3,0.0881431]
[1722452928444,16.70732025,3316.4,3316.3,0.0881431]
[1722452928803,15.135072,3316.4,3316.3,0.0881431]
[1722452929209,20.58693421,3316.4,3316.3,0.0881431]
[1722452929404,20.58693421,3316.4,3316.3,3.1e-06]
[1722452929405,18.700382,3316.4,3316.3,3.1e-06]
[1722452930625,21.715692,3316.4,3316.3,3.1e-06]
[1722452930850,21.715692,3316.4,3314.0,3.01745]
[1722452930851,3.01679,3314.8,3314.0,3.01745]
[1722452931160,3.01669,3314.9,3314.2,3.01731]
[1722452931361,3.01677,3314.8,3314.2,3.01731]
[1722452931560,3.01691,3314.7,3314.3,0.05087313]
[1722452931731,3.01695,3314.6,3314.3,0.05087313]
[1722452931922,3.01695,3314.6,3313.9,3.01759]
[1722452932122,3.01709,3314.5,3314.0,35.0]
[1722452932323,3.01679,3314.8,3314.0,35.05103406]
[1722452932760,4.010479,3314.8,3314.0,0.05103406]
[1722452933069,9.93672,3315.0,3314.0,3.06852406]
[1722452933230,3.01668,3314.9,3314.2,3.01725]
[1722452933567,3.01668,3314.9,3314.3,3.01722]
[1722452933764,3.01679,3314.8,3314.3,0.05087313]
[1722452934143,3.01686,3314.7,3314.1,3.01734]
[1722452934338,3.01686,3314.7,3314.4,0.05081949]
[1722452934543,3.01668,3314.9,3314.2,3.01728]
[1722452934764,6.9201,3315.0,3314.5,0.05076586]
[1722452934929,3.01685,3314.8,3314.5,0.05076586]
[1722452935128,3.01685,3314.8,3313.9,3.01756]
[1722452935541,3.01685,3314.8,3314.0,0.05103406]
[1722452935748,3.01685,3314.8,3314.1,3.01739]
[1722452936159,3.01685,3314.8,3314.2,0.05092677]
[1722452937156,3.01689,3314.7,3314.2,0.05092677]
[1722452937333,3.620264,3314.7,3314.2,0.05092677]
[1722452937954,3.620264,3314.7,3314.2,35.05092677]
[1722452938155,3.01702,3314.6,3314.2,35.05092677]
[1722452938367,3.01702,3314.6,3314.2,0.05092677]
[1722452938528,0.603374,3314.7,3314.2,0.05092677]
[1722452938733,3.01685,3314.8,3314.1,3.01739]
[1722452939007,3.01689,3314.7,3314.3,0.05000936]
[1722452939370,3.01689,3314.7,3314.1,3.01739]
[1722452939371,3.01695,3314.6,3314.1,35.0]
[1722452939870,3.01684,3314.8,3314.2,0.050063]
[1722452940034,3.01686,3314.7,3314.0,3.01744]
[1722452940236,3.01696,3314.6,3314.3,0.05000936]
[1722452940434,3.01696,3314.6,3314.1,35.0]
[1722452940683,3.01696,3314.6,3314.4,0.04995573]
[1722452940972,3.01696,3314.6,3314.0,3.01744]
[1722452941173,6.63738,3314.6,3314.5,0.04990209]
[1722452941349,6.63738,3314.6,3313.5,3.01794]
[1722452941350,3.01743,3314.1,3313.5,3.01794]
[1722452941549,3.01733,3314.2,3313.3,3.01808]
[1722452941776,3.01733,3314.2,3313.6,0.05038492]
[1722452941937,7.48717,3314.4,3313.6,3.01786]
[1722452942143,3.01725,3314.3,3313.7,3.0177]
[1722452942444,5.754794,3314.4,3313.8,0.0502776]
[1722452942677,3.01723,3314.3,3313.8,0.0502776]
[1722452942838,3.01723,3314.3,3313.7,3.01775]
[1722452943164,3.01747,3314.1,3313.4,3.01802]
[1722452943487,3.01747,3314.1,3313.1,5.68529]
[1722452943488,0.301747,3314.0,3313.2,3.01817]
[1722452943780,3.319247,3314.0,3313.5,0.05043858]
[1722452943943,0.301747,3314.0,3313.1,3.0183]
[1722452944139,3.01723,3314.3,3313.6,0.05038492]
[1722452944354,3.01723,3314.3,3313.6,3.01779]
[1722452944681,3.01723,3314.3,3313.7,3.06810126]
[1722452944840,4.47,3314.4,3313.9,3.01758]
[1722452945176,4.47,3314.4,3314.0,3.0175]
[1722452945398,4.47,3314.4,3314.0,0.0501703]
[1722452945598,8.16858,3314.4,3314.0,0.0501703]
[1722452945904,8.16858,3314.4,3314.1,0.05011665]
[1722452946051,8.16852,3314.4,3314.1,0.05011665]
[1722452946252,3.01731,3314.2,3314.1,0.05011665]
[1722452946514,6.03462,3314.2,3314.1,0.05011665]
[1722452946679,4.13591,3314.2,3313.5,3.01787]
[1722452946854,3.01741,3314.1,3313.5,3.01787]
[1722452947059,3.01741,3314.1,3313.6,0.04890057]
[1722452947255,3.0175,3314.0,3313.6,0.04890057]
[1722452947576,3.0175,3314.0,3313.3,38.01807]
[1722452947982,3.732842,3314.0,3313.4,0.0490079]
[1722452948185,5.3821,3313.9,3313.4,0.0490079]
[1722452948386,5.3821,3313.9,3313.1,3.0183]
[1722452948572,2.3645,3313.9,3313.2,3.01815]
[1722452948774,1.1186,3314.2,3313.5,3.01787]
[1722452949095,4.13597,3314.2,3313.6,0.04890057]
[1722452949721,0.650047,3314.1,3313.6,0.04890057]
[1722452949923,3.01756,3314.0,3313.6,0.04890057]
[1722452950227,3.01756,3314.0,3313.3,3.01812]
[1722452950385,3.01756,3314.0,3313.7,0.04884691]
[1722452950582,3.01756,3314.0,3313.3,3.01812]
[1722452951174,3.01768,3313.8,3313.4,0.0490079]
[1722452951396,3.01768,3313.8,3313.0,3.1647454]
[1722452951722,3.01778,3313.7,3313.1,35.04927632]
[1722452952028,3.01796,3313.5,3313.1,35.04927632]
[1722452952311,3.01805,3313.4,3313.1,0.04927632]
[1722452952516,3.01823,3313.2,3313.1,0.04927632]
[1722452952853,3.01805,3313.4,3313.1,0.04927632]
[1722452952991,1.57294458,3314.1,3313.1,0.04927632]
[1722452952992,8.42966,3313.2,3313.1,0.04927632]
[1722452953192,3.01832,3313.1,3313.0,0.1464054]
[1722452953421,0.301805,3313.3,3311.6,3.01965]
[1722452953631,3.01853,3312.9,3311.7,0.04776468]
[1722452953904,3.01915,3312.2,3311.7,0.04776468]
[1722452954415,3.01915,3312.2,3311.8,0.04627072]
[1722452954416,0.603811,3312.2,3311.8,0.04627072]
[1722452954736,3.01951,3311.8,3311.4,35.0]
[1722452955058,3.01953,3311.8,3310.9,3.02031]
[1722452955353,3.01968,3311.6,3311.5,0.0464319]
[1722452955654,3.01966,3311.7,3311.5,0.0464319]
[1722452955800,0.603908,3311.7,3311.0,35.0]
[1722452956147,3.01968,3311.6,3311.1,0.04664684]
[1722452956307,3.0198,3311.5,3311.1,0.04664684]
[1722452956491,3.0196,3311.7,3311.1,0.04664684]
[1722452956692,3.01954,3311.8,3311.1,0.04664684]
[1722452957296,3.02005,3311.2,3311.1,0.04664684]
[1722452957495,2.3312,3311.2,3310.0,5.68814]
[1722452957744,2.3312,3311.2,3309.7,2.4854]
[1722452957962,3.02017,3311.1,3310.1,0.04718443]
[1722452958171,3.555387,3311.0,3309.7,2.4854]
[1722452958374,3.02043,3310.8,3310.2,0.04429417]
[1722452958515,3.02043,3310.8,3310.0,3.02106]
[1722452958720,3.02043,3310.8,3310.3,0.0442404]
[1722452958925,3.02043,3310.8,3310.0,3.02106]
[1722452959148,3.6780117,3310.8,3310.4,0.04418663]
[1722452959454,3.6780117,3310.8,3309.6,0.29522565]
[1722452959455,3.02073,3310.5,3309.6,3.1678954]
[1722452959822,3.0208,3310.4,3309.7,3.0214]
[1722452960016,0.6575817,3310.8,3309.9,3.02123]
[1722452960260,3.02036,3310.9,3310.1,3.021]
[1722452960432,3.01919,3312.2,3310.1,3.021]
[1722452960433,2.3436,3311.9,3310.7,3.02047]
[1722452960635,3.01961,3311.7,3310.9,3.02025]
[1722452960835,3.01984,3311.5,3311.0,35.0]
[1722452961033,3.01963,3311.7,3311.0,35.0]
[1722452961244,2.3436,3311.9,3311.0,35.0]
[1722452961437,2.3436,3311.9,3311.3,3.01995]
[1722452961958,3.01905,3312.3,3311.6,3.01968]
[1722452962169,2.4009,3312.6,3311.1,2.72739486]
[1722452962338,5.41971,3312.6,3311.8,3.01945]
[1722452962525,2.942871,3312.6,3312.0,3.01924]
[1722452962726,2.942871,3312.6,3311.1,2.667]
[1722452962727,7.48842,3313.0,3311.5,2.72738778]
[1722452962933,2.3077,3313.2,3312.6,3.01874]
[1722452963133,2.3077,3313.2,3312.7,35.0]
[1722452963358,5.32549,3313.7,3312.7,35.0]
[1722452963558,3.01803,3313.5,3312.7,35.0]
[1722452963867,3.319853,3313.4,3312.7,35.0]
[1722452964176,2.3077,3313.7,3313.1,3.0183]
[1722452964318,3.0176,3313.9,3313.2,3.0182]
[1722452964526,3.01768,3313.8,3313.1,3.01829]
[1722452965027,3.01768,3313.8,3312.7,35.0]
[1722452965028,3.01741,3314.1,3313.2,3.01821]
[1722452965222,3.01763,3313.9,3313.2,3.01821]
[1722452965449,0.301763,3313.8,3313.4,3.01801]
[1722452965659,3.01733,3314.2,3313.4,3.01801]
[1722452965857,2.4801,3314.3,3313.6,3.01785]
[1722452966328,5.49741,3314.3,3313.7,0.04282988]
[1722452966672,3.01742,3314.1,3313.0,3.01839]
[1722452966840,2.4801,3314.3,3313.8,0.04277623]
[1722452967044,3.01759,3313.9,3312.8,3.01858]
[1722452967245,3.01769,3313.8,3313.0,3.01834]
[1722452967571,0.24801,3314.2,3312.9,0.04318415]
[1722452967880,3.01832,3313.1,3313.0,0.04313852]
[1722452968084,6.640295,3313.1,3313.0,0.04313852]
[1722452968251,6.640295,3313.1,3311.8,3.0195]
[1722452968252,3.01864,3312.8,3311.8,3.0195]
[1722452968457,3.01864,3312.8,3311.9,0.04222028]
[1722452968458,3.01861,3312.8,3311.9,0.04222028]
[1722452968786,3.01851,3312.9,3311.9,35.0]
[1722452968953,3.01851,3312.9,3312.1,3.01916]
[1722452969141,0.301851,3312.8,3312.1,3.01916]
[1722452969343,3.320511,3312.8,3312.2,0.04205914]
[1722452969565,0.301851,3312.8,3312.2,3.06118914]
[1722452969738,3.01859,3312.8,3312.2,0.04205914]
[1722452970181,3.603655,3313.1,3311.9,35.0]
[1722452970350,3.603655,3313.1,3312.3,0.04200544]
[1722452970351,3.01887,3312.5,3312.3,0.04200544]
[1722452970683,3.01887,3312.5,3312.4,0.04211513]
[1722452970886,3.01868,3312.7,3312.4,0.04211513]
[1722452971174,3.01868,3312.7,3311.9,3.01941]
[1722452971175,0.301868,3312.6,3312.1,3.01923]
[1722452971376,3.603655,3313.1,3312.5,0.04206143]
[1722452971591,3.603655,3313.1,3311.8,3.01944]
[1722452971592,3.01885,3312.6,3311.8,3.01944]
[1722452971779,3.603655,3313.1,3311.7,38.01957]
[1722452971780,4.47,3312.8,3312.0,3.01931]
[1722452971989,4.47,3312.8,3312.2,3.01912]
[1722452972167,4.47,3312.8,3311.8,3.01948]
[1722452972374,4.47,3312.8,3311.7,38.01958]
[1722452972543,3.01871,3312.7,3311.7,38.01958]
[1722452972745,4.47,3312.8,3312.1,3.01916]
[1722452972943,4.47,3312.8,3311.7,35.0]
[1722452972944,4.47,3312.8,3312.2,3.01907]
[1722452973243,4.47,3312.8,3312.0,3.01926]
[1722452973443,0.447,3312.7,3312.0,3.01926]
[1722452973649,0.447,3312.7,3312.1,3.01922]
[1722452974076,0.447,3312.7,3312.3,3.01903]
[1722452974384,4.47,3312.8,3312.3,3.01903]
[1722452974975,4.47,3312.8,3312.1,3.01921]
[1722452975176,3.01871,3312.7,3311.9,3.01939]
[1722452975380,3.01902,3312.4,3311.7,35.0]
[1722452975565,3.320922,3312.4,3311.7,35.0]
[1722452975764,0.301902,3312.4,3311.7,35.0]
[1722452976092,3.01931,3312.1,3311.7,35.0]
[1722452976388,3.01932,3312.0,3311.7,35.0]
[1722452977377,3.01941,3311.9,3311.7,35.0]
[1722452978326,2.4805,3312.2,3310.7,3.02044]
[1722452978599,3.01993,3311.4,3310.6,3.02059]
[1722452978794,3.01961,3311.7,3310.7,3.0205]
[1722452979114,3.01989,3311.4,3310.6,3.02058]
[1722452979279,3.0195,3311.8,3310.4,3.02072]
[1722452979606,3.0195,3311.8,3310.5,3.02068]
[1722452979607,3.02002,3311.3,3310.5,3.02068]
[1722452979919,3.01995,3311.4,3310.5,3.02068]
[1722452979920,3.02011,3311.2,3310.5,3.02068]
[1722452980195,3.01995,3311.4,3310.5,3.02068]
[1722452980353,3.01972,3311.6,3310.4,38.02077]
[1722452980556,3.02006,3311.2,3310.4,35.0]
[1722452980778,0.302006,3311.2,3310.4,35.0]
[1722452980967,0.302006,3311.2,3310.0,0.302123]
[1722452980968,3.02042,3310.8,3310.0,3.02107]
[1722452981168,3.02042,3310.8,3310.0,3.02109]
[1722452981368,3.02066,3310.6,3309.8,3.02131]
[1722452981595,0.302006,3311.2,3309.8,35.0]
[1722452981796,3.02079,3310.4,3309.8,35.0]
[1722452981997,3.02088,3310.3,3309.8,35.0]
[1722452982375,3.02097,3310.2,3309.8,35.0]
[1722452982569,3.02078,3310.4,3309.8,35.0]
[1722452982994,3.02097,3310.2,3309.8,35.0]
[1722452983238,2.3845,3310.0,3309.6,0.1464054]
[1722452983410,3.02133,3309.8,3309.6,0.1464054]
[1722452983734,5.40565,3310.0,3309.7,0.04063306]
[1722452984233,2.3845,3310.0,3309.7,0.04063306]
[1722452984796,5.40572,3310.0,3309.7,0.04063306]
[1722452985099,3.561822,3309.9,3309.7,0.04063306]
[1722452985296,3.02133,3309.8,3309.7,0.04063306]
[1722452985501,0.540572,3309.9,3309.6,0.1464054]
[1722452985502,3.561812,3309.9,3309.6,0.1464054]
[1722452985714,3.0,3310.7,3309.7,0.04075915]
[1722452985715,3.02079,3310.4,3309.7,0.04075915]